bitfinex/quotes_ETHUSD_20240703
["timestamp","ask_amount","ask_price","bid_price","bid_amount"]
[1719966257092,0.50481857,3431.8,3431.7,0.833]
[1719966257581,0.50481857,3431.8,3431.3,2.91434]
[1719966257795,11.7611,3432.0,3431.7,0.833]
[1719966257996,0.50482704,3431.9,3431.7,0.833]
[1719966258293,0.50482704,3431.8,3431.7,0.833]
[1719966259030,0.50482568,3431.8,3431.7,0.833]
[1719966259681,0.61137346,3431.8,3431.7,0.833]
[1719966261712,0.10654778,3431.8,3431.7,0.833]
[1719966261999,0.50482193,3431.8,3431.7,0.833]
[1719966262202,0.61136007,3431.8,3431.7,0.833]
[1719966262372,0.61135698,3431.8,3431.7,0.833]
[1719966263406,0.10653814,3431.8,3431.7,0.833]
[1719966263705,11.7611,3432.0,3431.7,0.833]
[1719966263706,0.50481477,3431.9,3431.7,0.833]
[1719966263874,0.61135291,3431.8,3431.7,0.17085905]
[1719966264077,0.10653814,3431.8,3431.7,1.00385905]
[1719966264277,9.2909,3432.0,3431.7,1.00385905]
[1719966264484,9.2909,3432.0,3431.9,0.833]
[1719966265085,9.79568294,3432.0,3431.9,0.833]
[1719966265285,9.2909,3432.0,3431.9,0.833]
[1719966269338,8.7409,3432.0,3431.5,5.28224]
[1719966269536,8.7409,3432.0,3431.9,0.833]
[1719966274615,8.84755134,3432.0,3431.9,0.833]
[1719966276270,8.84755134,3432.0,3431.9,3.3288]
[1719966276549,8.84755134,3432.0,3431.9,9.15646]
[1719966277464,8.84755134,3432.0,3431.9,0.833]
[1719966278339,8.84755134,3432.0,3431.9,1.740325]
[1719966279066,8.84755134,3432.0,3431.9,0.833]
[1719966280266,11.38499977,3432.0,3431.9,0.833]
[1719966280739,11.38499985,3432.0,3431.9,0.833]
[1719966280942,10.88020548,3432.0,3431.9,0.833]
[1719966282076,10.88019613,3432.0,3431.9,0.833]
[1719966282378,8.84755134,3432.0,3431.9,0.833]
[1719966282547,10.88019146,3432.0,3431.9,0.833]
[1719966285076,10.88019389,3432.0,3431.9,0.833]
[1719966285375,10.88019492,3432.0,3431.9,0.833]
[1719966287467,11.38498214,3432.0,3431.9,0.833]
[1719966287631,10.88019492,3432.0,3431.9,0.833]
[1719966288585,10.88018702,3432.0,3431.9,0.833]
[1719966289281,11.38497289,3432.0,3431.9,0.833]
[1719966291745,8.84755134,3432.0,3431.9,0.833]
[1719966291944,11.38498,3432.0,3431.9,0.833]
[1719966292144,8.84755134,3432.0,3431.9,0.833]
[1719966292355,11.3849722,3432.0,3431.9,0.833]
[1719966293040,11.38498051,3432.0,3431.9,0.833]
[1719966294653,8.84755134,3432.0,3431.9,0.833]
[1719966294854,11.38500209,3432.0,3431.9,0.833]
[1719966295058,11.38500339,3432.0,3431.9,0.833]
[1719966298341,8.84755134,3432.0,3431.9,0.833]
[1719966298536,11.38500498,3432.0,3431.9,0.833]
[1719966301783,11.38500311,3432.0,3431.9,0.833]
[1719966302763,11.38500311,3432.0,3431.1,2.95531358]
[1719966302764,13.30228342,3432.0,3431.1,2.95531358]
[1719966303054,2.2674,3431.8,3431.7,0.833]
[1719966303368,4.91145265,3431.8,3431.7,0.833]
[1719966303702,5.46145265,3431.8,3431.7,0.833]
[1719966304199,5.46164513,3431.8,3431.7,0.833]
[1719966304482,3.4288403,3431.8,3431.7,0.833]
[1719966305744,2.92400088,3431.8,3431.7,0.833]
[1719966305945,3.42884008,3431.8,3431.7,0.833]
[1719966306593,2.92400088,3431.8,3431.7,0.833]
[1719966306888,3.42884008,3431.8,3431.7,0.833]
[1719966307446,2.92400088,3431.8,3431.7,0.833]
[1719966307669,3.42884009,3431.8,3431.7,0.833]
[1719966307875,4.6458141,3431.8,3431.7,0.833]
[1719966308054,4.6458141,3431.8,3430.9,2.3416]
[1719966308254,4.6458141,3431.8,3431.2,0.833]
[1719966308255,1.05483921,3431.7,3431.2,0.833]
[1719966308485,0.50483921,3431.6,3431.4,0.833]
[1719966308657,0.55,3431.5,3431.4,0.833]
[1719966308859,1.1613228,3431.5,3431.4,0.833]
[1719966310596,0.65648359,3431.5,3431.4,0.833]
[1719966310795,1.1613716,3431.5,3431.4,0.833]
[1719966311232,3.5471716,3431.5,3431.4,0.833]
[1719966311381,3.5471716,3431.5,3430.6,2.3768]
[1719966311580,0.50488801,3431.4,3430.6,2.3768]
[1719966311792,0.65638179,3431.3,3431.2,0.833]
[1719966312008,1.57097678,3431.3,3431.0,0.833]
[1719966312218,1.06608877,3431.3,3431.0,0.833]
[1719966314398,0.50494862,3431.2,3431.0,0.833]
[1719966314593,0.55,3431.1,3431.0,0.833]
[1719966314822,0.65638506,3431.1,3431.0,0.833]
[1719966315846,0.10638506,3431.1,3431.0,0.833]
[1719966316044,2.3061,3431.7,3431.0,1.15031]
[1719966316234,1.05491475,3431.6,3431.5,0.833]
[1719966316945,1.05491475,3431.6,3431.3,0.833]
[1719966317111,0.50491569,3431.5,3431.3,0.833]
[1719966317311,0.55,3431.4,3431.3,0.833]
[1719966317534,0.55,3431.6,3431.3,0.833]
[1719966317730,0.55,3431.6,3430.8,2.39838834]
[1719966317731,0.50491367,3431.5,3431.4,0.833]
[1719966318017,1.05491367,3431.5,3431.4,0.833]
[1719966319410,1.05491367,3431.5,3430.8,2.3401]
[1719966319758,0.55,3431.4,3430.8,2.3401]
[1719966319916,0.55,3431.4,3431.3,0.833]
[1719966320317,0.55,3431.6,3431.3,0.833]
[1719966320550,0.50491946,3431.5,3431.3,0.833]
[1719966320734,0.55,3431.4,3430.8,2.3401]
[1719966320934,0.55,3431.6,3431.3,0.833]
[1719966321165,0.5049192,3431.5,3431.3,0.833]
[1719966321326,0.55,3431.4,3431.3,0.833]
[1719966321657,0.55,3431.6,3431.3,0.833]
[1719966321834,0.55,3431.8,3431.5,0.833]
[1719966322024,0.55,3431.8,3431.7,0.833]
[1719966322223,1.05487536,3431.8,3431.7,0.833]
[1719966323664,1.05487319,3431.8,3431.7,0.833]
[1719966324734,1.08188978,3431.8,3431.7,0.833]
[1719966325534,1.08187469,3431.8,3431.7,0.833]
[1719966325733,0.57701659,3431.8,3431.7,0.833]
[1719966325955,1.08187729,3431.8,3431.7,0.833]
[1719966326948,0.02701659,3431.8,3431.7,3.1328]
[1719966327144,0.02701659,3431.8,3431.7,12.27408]
[1719966327370,8.7409,3432.0,3431.9,2.91383]
[1719966327569,1.753,3433.3,3431.9,3.74683]
[1719966327777,0.50467141,3433.2,3433.1,0.833]
[1719966327947,0.95993855,3433.2,3433.1,0.833]
[1719966328331,1.05922952,3433.2,3433.1,0.833]
[1719966328948,0.55455811,3433.2,3433.1,0.833]
[1719966330770,1.10455811,3433.2,3433.1,0.833]
[1719966331161,1.10455811,3433.2,3432.4,2.97165166]
[1719966331473,0.55,3433.1,3432.4,2.91339]
[1719966331650,0.55,3433.1,3433.0,0.833]
[1719966331651,0.6494467,3433.1,3433.0,0.833]
[1719966340570,0.55,3433.1,3433.0,0.833]
[1719966340751,0.55,3433.4,3433.0,0.833]
[1719966341115,0.55,3433.4,3432.8,2.461]
[1719966341116,0.55,3433.4,3433.3,0.833]
[1719966349722,0.64630128,3433.4,3433.3,0.833]
[1719966351408,0.94043141,3433.4,3433.3,0.833]
[1719966352411,0.94043141,3433.4,3432.5,2.91331]
[1719966352629,0.94043141,3433.4,3433.2,0.833]
[1719966354404,0.50464725,3433.3,3433.2,0.833]
[1719966354719,1.15088236,3433.3,3433.2,0.833]
[1719966354938,1.02023636,3433.3,3433.2,0.833]
[1719966355227,1.52488078,3433.3,3433.2,0.833]
[1719966356817,1.02023636,3433.3,3433.2,0.833]
[1719966357023,1.52488504,3433.3,3433.2,0.833]
[1719966357524,1.52488512,3433.3,3433.2,0.833]
[1719966358026,2.98073511,3433.3,3433.2,0.833]
[1719966358200,3.48538387,3433.3,3433.2,0.833]
[1719966360331,3.48538387,3433.3,3432.4,5.23129]
[1719966360627,1.05464876,3433.2,3432.4,5.23129]
[1719966360794,0.55,3433.2,3433.1,0.833]
[1719966360995,1.05465268,3433.2,3433.1,0.833]
[1719966363849,0.55,3433.2,3433.1,0.833]
[1719966364327,1.05465431,3433.2,3433.1,0.833]
[1719966364829,1.15110065,3433.2,3433.1,0.833]
[1719966367134,1.15108321,3433.2,3433.1,0.833]
[1719966369058,3.42238321,3433.2,3432.3,2.2523]
[1719966369223,3.42238321,3433.2,3432.7,0.833]
[1719966369224,0.50463687,3433.1,3432.7,0.833]
[1719966369420,0.64642723,3433.0,3432.7,0.833]
[1719966369643,0.50463687,3432.9,3432.7,0.833]
[1719966369816,0.09642502,3432.8,3432.7,0.833]
[1719966370026,0.60106189,3432.8,3432.7,0.833]
[1719966370330,0.60109516,3432.8,3432.7,0.833]
[1719966370528,0.60109451,3432.8,3432.7,0.833]
[1719966370725,0.09642502,3432.8,3432.7,0.833]
[1719966370927,0.55,3433.0,3432.3,5.16579]
[1719966371152,0.09640996,3432.8,3432.3,3.060243]
[1719966371449,0.55,3433.1,3432.7,0.833]
[1719966371650,0.55,3433.1,3432.9,0.833]
[1719966371651,0.50466878,3433.0,3432.9,0.833]
[1719966371953,1.05466878,3433.0,3432.9,0.833]
[1719966373037,0.50466878,3433.0,3432.9,0.833]
[1719966373623,0.50466521,3433.0,3432.9,0.833]
[1719966374018,2.2713,3433.2,3432.9,0.833]
[1719966374324,2.2713,3433.2,3432.3,5.973733]
[1719966374325,2.77177092,3433.1,3432.3,5.973733]
[1719966374525,0.50466367,3433.0,3432.4,0.8887373]
[1719966374749,2.2713,3433.2,3432.9,0.833]
[1719966374921,2.2713,3433.2,3432.4,0.8887373]
[1719966374922,2.77175641,3433.1,3432.4,0.8887373]
[1719966375126,2.2713,3433.2,3432.4,0.8887373]
[1719966375127,2.2713,3433.2,3433.0,0.833]
[1719966375329,2.77175452,3433.1,3433.0,0.833]
[1719966376726,2.2713,3433.2,3433.0,0.833]
[1719966376966,2.77180496,3433.1,3433.0,0.833]
[1719966379750,2.86819349,3433.1,3433.0,0.833]
[1719966380157,2.86817212,3433.1,3433.0,0.833]
[1719966382231,0.60105456,3433.1,3433.0,0.833]
[1719966383543,2.86816797,3433.1,3433.0,0.833]
[1719966383748,0.60105376,3433.1,3433.0,0.833]
[1719966384861,2.86814805,3433.1,3432.4,3.2082373]
[1719966385074,0.50466523,3433.0,3432.4,3.2082373]
[1719966385249,0.60107318,3433.0,3432.9,0.833]
[1719966386470,0.60107318,3433.0,3432.4,2.3195]
[1719966386753,0.09640795,3433.0,3432.9,0.833]
[1719966386954,0.6010786,3433.0,3432.9,0.833]
[1719966387175,0.60107882,3433.0,3432.9,0.833]
[1719966387703,2.86821672,3433.0,3432.9,0.833]
[1719966389882,0.09640795,3433.0,3432.9,0.833]
[1719966390105,2.86825643,3433.0,3432.9,0.833]
[1719966393165,0.09640795,3433.0,3432.9,0.833]
[1719966393367,2.86825639,3433.0,3432.9,0.833]
[1719966396697,2.86827499,3433.0,3432.9,0.833]
[1719966397501,5.14625249,3433.0,3431.8,2.4166]
[1719966397704,2.3494,3432.7,3431.8,2.4166]
[1719966398017,3.32186704,3432.6,3432.0,0.833]
[1719966398329,2.77186704,3432.5,3432.0,0.833]
[1719966398517,3.32186704,3432.4,3432.0,0.833]
[1719966398716,2.77186704,3432.3,3432.0,0.833]
[1719966399026,2.77186704,3432.2,3432.0,0.833]
[1719966399191,0.50468208,3432.1,3431.3,2.4166]
[1719966399395,0.60088271,3432.1,3431.8,0.833]
[1719966399728,0.50468208,3432.0,3431.8,0.833]
[1719966399927,0.09604028,3432.0,3431.8,0.833]
[1719966400131,0.55,3432.2,3431.8,0.833]
[1719966400432,0.55,3432.2,3431.3,2.4166]
[1719966400433,1.0096581,3432.1,3432.0,0.833]
[1719966400736,1.5596581,3432.1,3432.0,0.833]
[1719966401243,1.5596581,3432.1,3431.4,0.24166]
[1719966401432,1.0548291,3432.1,3432.0,0.833]
[1719966401641,1.55965323,3432.1,3432.0,0.833]
[1719966401940,1.55965323,3432.1,3431.4,0.24166]
[1719966402108,1.0548291,3432.1,3432.0,0.833]
[1719966402320,1.55965248,3432.1,3432.0,0.833]
[1719966403143,1.55965368,3432.1,3432.0,0.833]
[1719966403316,1.0548291,3432.1,3432.0,0.833]
[1719966403839,1.55965476,3432.1,3432.0,0.833]
[1719966404049,1.55965947,3432.1,3432.0,0.833]
[1719966404421,1.0548291,3432.1,3432.0,0.833]
[1719966407451,1.39525201,3432.1,3431.7,0.833]
[1719966407651,1.0548291,3432.1,3431.7,0.833]
[1719966409443,0.55,3432.0,3431.6,0.833]
[1719966409734,2.45878033,3431.9,3431.5,0.833]
[1719966410660,2.45878033,3431.9,3431.6,0.833]
[1719966413154,2.45878033,3431.9,3430.9,2.3072]
[1719966413390,2.45878033,3431.9,3431.5,0.833]
[1719966415352,2.45878033,3431.9,3431.0,0.522194]
[1719966415353,2.45878033,3431.9,3431.4,0.833]
[1719966415550,0.55,3431.8,3431.4,0.833]
[1719966415795,0.64572545,3431.8,3431.4,0.833]
[1719966418384,0.64572545,3431.8,3431.5,0.833]
[1719966418689,0.09572545,3431.8,3431.0,0.522194]
[1719966418999,0.09572545,3431.8,3431.5,0.833]
[1719966420302,0.09572545,3431.8,3430.9,2.3072]
[1719966420802,0.09572545,3431.8,3430.2,2.91524]
[1719966420803,2.9352,3431.7,3430.5,2.264]
[1719966421006,2.9352,3431.7,3431.2,0.833]
[1719966421207,0.5740164,3431.6,3431.2,0.833]
[1719966421511,0.55,3431.5,3431.2,0.833]
[1719966421673,0.64562275,3431.5,3431.2,0.833]
[1719966424303,0.50494639,3431.4,3431.2,0.833]
[1719966424512,0.09521814,3431.4,3431.2,0.833]
[1719966426311,0.50493939,3431.3,3431.2,0.833]
[1719966426608,0.09521703,3431.3,3431.2,0.833]
[1719966426978,0.55,3431.5,3431.2,0.833]
[1719966427179,0.09521507,3431.3,3431.2,0.833]
[1719966427379,0.50493568,3431.3,3431.2,0.833]
[1719966427587,0.60015075,3431.3,3431.2,0.833]
[1719966427792,0.09521507,3431.3,3431.2,0.833]
[1719966427991,0.50493568,3431.3,3431.2,0.833]
[1719966428192,0.09521507,3431.3,3431.2,0.833]
[1719966428417,0.50493568,3431.3,3431.2,0.833]
[1719966428621,0.60015075,3431.3,3431.2,0.833]
[1719966431409,0.09521507,3431.3,3431.2,0.833]
[1719966431641,0.60014743,3431.3,3431.2,0.833]
[1719966431844,0.50493236,3431.3,3431.2,0.833]
[1719966432008,0.60014417,3431.3,3431.2,0.833]
[1719966434721,0.60014585,3431.3,3430.5,2.264]
[1719966434924,0.50493151,3431.2,3430.6,0.817919]
[1719966435170,0.60007233,3431.2,3431.1,0.833]
[1719966438059,0.60009265,3431.2,3430.6,0.817919]
[1719966438375,0.50495183,3431.1,3430.3,2.4119]
[1719966438585,0.59909832,3431.1,3430.8,0.833]
[1719966438739,0.50495183,3431.0,3430.8,0.833]
[1719966438945,0.59908214,3431.0,3430.8,0.833]
[1719966439142,0.09413031,3431.0,3430.8,0.833]
[1719966439442,2.2527,3431.3,3430.8,0.833]
[1719966439654,0.09412679,3430.9,3430.8,0.833]
[1719966440050,2.2527,3431.3,3430.8,0.833]
[1719966440253,0.09412679,3430.9,3430.3,2.4119]
[1719966440440,2.2527,3431.3,3430.3,2.4119]
[1719966440441,2.2527,3431.3,3430.8,0.833]
[1719966440638,2.2527,3431.3,3430.4,0.824246]
[1719966440639,0.50495798,3431.2,3431.1,0.833]
[1719966441464,0.50494702,3431.2,3431.1,0.833]
[1719966441675,0.45494702,3431.2,3431.1,0.833]
[1719966444647,2.2527,3431.3,3431.1,0.833]
[1719966451603,0.5049624,3431.2,3431.1,0.833]
[1719966454412,2.77337232,3431.2,3430.9,0.833]
[1719966454609,0.50497079,3431.1,3430.9,0.833]
[1719966454912,0.50497079,3431.0,3430.9,0.833]
[1719966455102,0.09301396,3431.0,3430.9,0.833]
[1719966455290,0.59798475,3431.0,3430.3,2.4119]
[1719966455614,0.50497079,3430.9,3430.7,0.833]
[1719966455808,0.59798365,3430.9,3430.7,0.833]
[1719966456014,0.50497079,3430.8,3430.7,0.833]
[1719966456216,0.59798254,3430.8,3430.7,0.833]
[1719966457947,0.59800952,3430.8,3430.7,0.833]
[1719966458291,0.59800951,3430.8,3430.7,0.833]
[1719966461000,0.09301175,3430.8,3430.7,0.833]
[1719966461239,0.50499373,3431.2,3430.7,0.833]
[1719966461438,2.26849268,3431.1,3430.9,0.833]
[1719966461627,2.77348641,3431.0,3430.9,0.833]
[1719966462205,0.50499373,3431.0,3430.9,0.833]
[1719966463309,2.77342005,3431.0,3430.9,0.833]
[1719966463612,0.50499373,3431.0,3430.9,0.833]
[1719966464448,0.50497161,3431.0,3430.9,0.833]
[1719966465772,2.77337473,3431.0,3430.9,0.833]
[1719966466305,0.50497161,3431.0,3430.9,0.833]
[1719966466733,2.77339074,3431.0,3430.9,0.833]
[1719966467719,2.77339939,3431.0,3430.9,0.833]
[1719966468119,0.50497676,3431.0,3430.9,0.833]
[1719966469645,0.59617736,3431.0,3430.9,0.833]
[1719966471039,0.59615912,3431.0,3430.9,0.833]
[1719966471414,0.59615907,3431.0,3430.9,0.833]
[1719966474142,0.59614048,3431.0,3430.9,0.833]
[1719966477455,0.0912006,3431.0,3430.9,0.833]
[1719966477625,0.50494595,3431.0,3430.9,0.833]
[1719966477830,0.59617068,3431.0,3430.9,0.833]
[1719966480457,0.59617068,3431.0,3430.5,2.4595]
[1719966480750,0.09122473,3431.0,3430.9,0.833]
[1719966480914,0.59618063,3431.0,3430.9,0.833]
[1719966481114,0.5049559,3431.0,3430.9,0.833]
[1719966481345,0.09122716,3431.0,3430.9,0.833]
[1719966481515,0.59618306,3431.0,3430.9,0.833]
[1719966481728,0.5049559,3431.0,3430.9,0.833]
[1719966481928,0.09122716,3431.0,3430.9,0.833]
[1719966482153,0.59618306,3431.0,3430.9,0.833]
[1719966482368,0.5049559,3431.0,3430.9,0.833]
[1719966482515,0.5049559,3431.2,3430.9,0.833]
[1719966482718,0.09122716,3431.0,3430.6,0.62570513]
[1719966482965,7.48,3431.3,3430.9,0.833]
[1719966483259,7.48,3431.3,3431.2,0.833]
[1719966484759,7.57121233,3431.3,3431.2,0.833]
[1719966487458,9.83943318,3431.3,3431.2,0.833]
[1719966489955,9.83945222,3431.3,3431.2,0.833]
[1719966490663,10.34438326,3431.3,3431.2,0.833]
[1719966491375,8.07614501,3431.3,3431.2,0.833]
[1719966491568,10.34438251,3431.3,3431.2,0.833]
[1719966494873,10.3443742,3431.3,3431.2,0.833]
[1719966496472,2.8643742,3431.3,3431.2,0.833]
[1719966498382,2.3594186,3431.3,3431.2,0.833]
[1719966498547,2.86434385,3431.3,3431.2,0.833]
[1719966498755,2.8643419,3431.3,3431.2,0.833]
[1719966499646,2.86435157,3431.3,3431.2,0.833]
[1719966501395,2.86435779,3431.3,3431.2,0.833]
[1719966501537,0.091222,3431.3,3431.2,0.833]
[1719966501742,2.8643596,3431.3,3431.2,0.833]
[1719966501976,2.7731376,3431.3,3431.2,0.833]
[1719966502163,2.8643596,3431.3,3431.2,0.833]
[1719966503156,5.3016596,3431.3,3431.2,0.833]
[1719966505084,2.528522,3431.3,3431.2,0.833]
[1719966505291,5.30178786,3431.3,3431.2,0.833]
[1719966508485,4.79683678,3431.3,3431.2,0.833]
[1719966508668,5.3017844,3431.3,3431.2,0.833]
[1719966508991,5.30178755,3431.3,3431.2,0.833]
[1719966511260,5.30178755,3431.3,3430.5,2.4786]
[1719966511461,2.77326555,3431.2,3430.6,0.62454155]
[1719966511662,2.86447326,3431.1,3430.6,0.62454155]
[1719966511859,0.09120771,3431.1,3431.0,0.833]
[1719966512181,2.77337308,3431.1,3431.0,0.833]
[1719966512347,2.86458079,3431.1,3431.0,0.833]
[1719966513171,2.86458079,3431.1,3430.5,2.4786]
[1719966513484,2.77337308,3431.0,3430.9,0.833]
[1719966513669,2.86459657,3431.0,3430.9,0.833]
[1719966515280,2.35972396,3431.0,3430.9,0.833]
[1719966515584,2.86471925,3431.0,3430.9,0.833]
[1719966518448,2.35973677,3431.0,3430.9,0.833]
[1719966518764,2.86473511,3431.0,3430.9,0.833]
[1719966518965,2.86473515,3431.0,3430.9,0.833]
[1719966521763,2.35973624,3431.0,3430.9,0.833]
[1719966521969,2.86473446,3431.0,3430.9,0.833]
[1719966524972,0.59621815,3431.0,3430.9,0.833]
[1719966526457,0.59621815,3431.0,3430.3,2.50629]
[1719966526757,0.09122349,3431.0,3430.9,0.833]
[1719966527159,0.50498025,3431.0,3430.9,0.833]
[1719966527496,0.58413481,3431.0,3430.9,0.833]
[1719966528399,0.58413616,3431.0,3430.9,0.833]
[1719966531723,0.58415062,3431.0,3430.9,0.833]
[1719966532217,0.5841506,3431.0,3430.9,0.833]
[1719966534790,0.58414738,3431.0,3430.9,0.833]
[1719966538104,0.58412679,3431.0,3430.9,0.833]
[1719966540861,0.07915456,3431.0,3430.9,0.833]
[1719966541025,0.58412983,3431.0,3430.9,0.833]
[1719966541195,0.50497527,3431.0,3430.9,0.833]
[1719966541390,0.58134517,3431.0,3430.9,0.833]
[1719966543993,0.58135512,3431.0,3430.9,0.833]
[1719966544306,0.0763699,3431.0,3430.9,0.833]
[1719966544505,2.4373,3431.3,3430.9,0.833]
[1719966544506,0.50498498,3431.2,3430.9,0.833]
[1719966544849,0.58135599,3431.1,3430.9,0.833]
[1719966545000,0.50498498,3431.0,3430.9,0.833]
[1719966545342,0.58135488,3431.0,3430.9,0.833]
[1719966547131,0.0763699,3431.0,3430.9,0.833]
[1719966547319,2.4373,3431.3,3430.9,0.833]
[1719966547632,0.58135494,3431.2,3430.9,0.833]
[1719966547830,0.50498283,3431.1,3430.9,0.833]
[1719966548030,0.50498283,3431.0,3430.9,0.833]
[1719966548216,0.58135395,3431.0,3430.9,0.833]
[1719966550396,0.07637112,3431.0,3430.9,0.833]
[1719966550605,0.5813555,3431.0,3430.9,0.833]
[1719966550797,0.50498438,3431.0,3430.9,0.833]
[1719966550997,0.58135489,3431.0,3430.9,0.833]
[1719966551648,0.58135489,3431.0,3430.7,0.833]
[1719966551837,0.50498438,3430.9,3430.7,0.833]
[1719966552254,0.07637039,3430.8,3430.7,0.833]
[1719966552459,0.58135477,3430.8,3430.7,0.833]
[1719966553665,0.58138478,3430.8,3430.7,0.833]
[1719966554156,0.58138477,3430.8,3430.7,0.833]
[1719966556822,0.58138491,3430.8,3430.7,0.833]
[1719966560174,0.07637039,3430.8,3430.7,0.833]
[1719966560478,2.53833916,3430.8,3430.7,0.833]
[1719966560686,2.61471876,3430.8,3430.7,0.833]
[1719966563606,2.61470339,3430.8,3430.7,0.833]
[1719966563743,2.61470339,3430.8,3430.1,2.4255]
[1719966564082,0.0763796,3430.8,3430.7,0.833]
[1719966564286,2.53836295,3430.8,3430.7,0.833]
[1719966564468,2.61379012,3430.8,3430.7,0.833]
[1719966566698,0.07542717,3430.8,3430.7,0.833]
[1719966566909,0.50497371,3430.8,3430.7,0.833]
[1719966567193,2.1061576,3430.8,3430.7,0.833]
[1719966567354,2.61113392,3430.8,3430.7,0.833]
[1719966570010,2.61113217,3430.8,3430.7,0.833]
[1719966573380,0.57789722,3430.8,3430.7,0.833]
[1719966573579,2.61113129,3430.8,3430.7,0.833]
[1719966576591,2.61113364,3430.8,3430.7,0.833]
[1719966579678,0.07292153,3430.8,3430.7,0.833]
[1719966579929,2.5382308,3430.8,3430.7,0.833]
[1719966580095,2.10532517,3430.8,3430.7,0.833]
[1719966580459,2.61030917,3430.8,3430.7,0.833]
[1719966582928,2.10532763,3430.8,3430.7,0.833]
[1719966583212,3.11527829,3430.8,3430.7,0.833]
[1719966583414,2.61029916,3430.8,3430.7,0.833]
[1719966586305,0.07207513,3430.8,3430.7,0.833]
[1719966586508,9.7422,3431.3,3430.7,0.833]
[1719966586509,0.50498477,3431.2,3430.7,0.833]
[1719966586715,3.87023707,3431.1,3431.0,0.833]
[1719966588909,2.2675,3431.0,3430.6,0.833]
[1719966589116,2.84553361,3430.9,3430.6,0.833]
[1719966589406,2.77344014,3430.8,3430.6,0.833]
[1719966589598,2.77358341,3430.7,3430.6,0.833]
[1719966589800,2.84567467,3430.7,3430.6,0.833]
[1719966591402,0.57710341,3430.7,3430.6,0.833]
[1719966591603,2.84562178,3430.7,3430.6,0.833]
[1719966592313,0.57710341,3430.7,3430.6,0.833]
[1719966592705,2.8456235,3430.7,3430.6,0.833]
[1719966593052,0.57708853,3430.7,3430.6,0.833]
[1719966593254,0.07209126,3430.7,3430.6,0.833]
[1719966593456,2.8456549,3430.7,3430.6,0.833]
[1719966593756,2.84321491,3430.7,3430.6,0.833]
[1719966596040,0.06965127,3430.7,3430.6,0.833]
[1719966596237,2.84321218,3430.7,3430.6,0.833]
[1719966596444,2.77356091,3430.7,3430.6,1.15527]
[1719966596640,0.57377872,3430.7,3430.6,1.15527]
[1719966599351,0.57375806,3430.7,3430.6,1.15527]
[1719966599553,1.07874514,3430.7,3430.6,1.15527]
[1719966601630,0.57375806,3430.7,3430.6,1.15527]
[1719966601876,1.07873859,3430.7,3430.6,1.15527]
[1719966605056,0.57375806,3430.7,3430.3,2.3897]
[1719966605256,0.57375806,3430.7,3430.6,0.833]
[1719966605567,1.07873643,3430.7,3430.3,2.3897]
[1719966605871,0.57375806,3430.7,3430.6,0.833]
[1719966606067,1.07874662,3430.7,3430.6,0.833]
[1719966607667,1.07875068,3430.7,3430.6,0.833]
[1719966608358,1.07875415,3430.7,3430.6,0.833]
[1719966611337,3.34727558,3430.7,3430.6,0.833]
[1719966611542,1.07875739,3430.7,3430.6,0.833]
[1719966612466,3.34729265,3430.7,3430.6,0.833]
[1719966614911,3.34729265,3430.7,3430.3,2.3897]
[1719966615080,1.07876513,3430.7,3430.6,0.833]
[1719966615241,3.3473121,3430.7,3430.6,0.833]
[1719966615985,1.07707344,3430.7,3430.6,0.833]
[1719966616348,3.34557765,3430.7,3430.6,0.833]
[1719966616683,1.07707344,3430.7,3430.6,0.833]
[1719966618184,0.57208628,3430.7,3430.6,0.833]
[1719966618359,0.06707976,3430.7,3430.6,0.833]
[1719966618562,0.50499911,3430.7,3430.6,0.833]
[1719966618765,0.06644058,3430.7,3430.6,0.833]
[1719966619086,0.50499204,3430.7,3430.6,0.833]
[1719966619309,0.57143262,3430.7,3430.6,0.833]
[1719966619958,0.57143262,3430.7,3430.2,2.3408]
[1719966620165,0.57143262,3430.7,3430.6,0.833]
[1719966620166,0.06644058,3430.7,3430.6,0.833]
[1719966620572,0.50499656,3430.7,3430.6,0.833]
[1719966620774,0.57143714,3430.7,3430.6,0.833]
[1719966620973,2.83995447,3430.7,3430.6,0.833]
[1719966621613,0.57144009,3430.7,3430.6,0.833]
[1719966621777,2.83995825,3430.7,3430.6,0.833]
[1719966622264,0.57144009,3430.7,3430.6,0.833]
[1719966622899,2.83996533,3430.7,3430.6,0.833]
[1719966624918,0.06644058,3430.7,3430.6,0.833]
[1719966625077,2.77352059,3430.9,3430.6,0.833]
[1719966625282,0.06644058,3430.7,3430.2,2.9276663]
[1719966625486,0.06644058,3430.7,3430.6,0.833]
[1719966625683,2.77349968,3430.9,3430.6,0.833]
[1719966625885,0.06644058,3430.7,3430.2,2.3408]
[1719966626207,0.06644058,3430.7,3430.6,0.833]
[1719966626404,2.83998093,3430.7,3430.6,0.833]
[1719966628330,0.06644058,3430.7,3430.6,0.833]
[1719966628499,2.77353876,3430.7,3430.6,0.833]
[1719966628826,2.83997934,3430.7,3430.6,0.833]
[1719966630217,2.83997934,3430.7,3430.0,2.3689]
[1719966630422,2.49764058,3430.7,3430.6,0.833]
[1719966630634,5.27120802,3430.7,3430.6,0.833]
[1719966631138,2.84000802,3430.7,3430.6,0.833]
[1719966631706,2.84003204,3430.7,3430.6,0.833]
[1719966632143,2.84004015,3430.7,3430.6,0.833]